2CCN - Level 2 Cost Centre Name,,9CCN - Level 9 Cost Centre Name,9CCC - Level 9 Cost Centre Code,9AN - Level 9 Account Name,9AC - Level 9 Account Code,Date posted,Date of transaction,Merchant Name,Merchant City,Merchant State,Merchant Zip Code,Originating Account Name,Originating Account Number,MCC/SIC Code,MCC Description,Original Amount,Currency,Conversion Rate,Billed Amount,Debit Credit,Reference Number,Statement Cycle,Account Name
Gloucester City Council,23UE,Museum of Gloucester,MU002,Catering Provisions,3103,05/02/2018,03/02/2018,ASDA SUPERSTORE,GLOUCESTER,GBR,GL1 1DS,REDACTED,556*********2362,5411,"GROCERY STORES, SUPERMARKETS",8.71,Pound Sterling (826),1.000000000,8.71,Debit,15377758035020651734363,02/03/2018,GLOUCESTER CC
Gloucester City Council,23UE,Gloucester Life Museum,MU005,Catering Provisions,3103,13/02/2018,12/02/2018,TESCO STORES LTD 6498,GLOUCESTER,GBR,GL1 1SZ,REDACTED,556*********2362,5411,"GROCERY STORES, SUPERMARKETS",3,Pound Sterling (826),1.000000000,3,Debit,65377758044080343408390,02/03/2018,GLOUCESTER CC
Gloucester City Council,23UE,Museum of Gloucester,MU002,General Supplies/Materials,3025,16/02/2018,15/02/2018,THE WORKS,GLOUCESTER,,GL1 2NG,REDACTED,556*********2362,5310,DISCOUNT STORES,24,Pound Sterling (826),1.000000000,24,Debit,85481478047019707785467,02/03/2018,GLOUCESTER CC
Gloucester City Council,23UE,Gloucester Life Museum,MU005,Catering Provisions,3103,19/02/2018,17/02/2018,ASDA SUPERSTORE,GLOUCESTER,GBR,GL1 1DS,REDACTED,556*********2362,5411,"GROCERY STORES, SUPERMARKETS",8.25,Pound Sterling (826),1.000000000,8.25,Debit,15377758049030622702195,02/03/2018,GLOUCESTER CC
Gloucester City Council,23UE,Museum of Gloucester,MU002,General Supplies/Materials,3025,19/02/2018,17/02/2018,REALLY USEFUL PROD,NORMANTON,,WF6 1TN,REDACTED,556*********2362,5200,HOME SUPPLY WAREHOUSE STORES,63.83,Pound Sterling (826),1.000000000,63.83,Debit,55504438049275289724047,02/03/2018,GLOUCESTER CC
Gloucester City Council,23UE,Museum of Gloucester,MU002,General Supplies/Materials,3025,20/02/2018,19/02/2018,HOBBY CRAFT LTD,GLOUCESTER 22,,GL1 5SF,REDACTED,556*********2362,5970,"ARTIST SUPPLY STORES, CRAFT SHOPS",3.6,Pound Sterling (826),1.000000000,3.6,Debit,55504438050071297807023,02/03/2018,GLOUCESTER CC
Gloucester City Council,23UE,Museum of Gloucester,MU002,Catering Provisions,3103,21/02/2018,20/02/2018,MARKS&SPENCER PLC,GLOUCESTER,GBR,GL1 1PH,REDACTED,556*********2362,5411,"GROCERY STORES, SUPERMARKETS",3.5,Pound Sterling (826),1.000000000,3.5,Debit,45377758052050239809671,02/03/2018,GLOUCESTER CC
Gloucester City Council,23UE,Museum of Gloucester,MU002,Catering Provisions,3103,26/02/2018,24/02/2018,ASDA SUPERSTORE,GLOUCESTER,GBR,GL1 1DS,REDACTED,556*********2362,5411,"GROCERY STORES, SUPERMARKETS",30.73,Pound Sterling (826),1.000000000,30.73,Debit,15377758056080654640037,02/03/2018,GLOUCESTER CC
Gloucester City Council,23UE,Managing Director & Directors,MT001,Public Transport - Staff,2402,28/02/2018,27/02/2018,Trainline,London,GBR,1445,REDACTED,556*********1418,4112,PASSENGER RAILWAYS,69.9,Pound Sterling (826),1.000000000,69.9,Debit,85130088058808232261582,02/03/2018,GLOUCESTER CC
Gloucester City Council,23UE,Managing Director & Directors,MT001,Public Transport - Staff,2402,02/03/2018,01/03/2018,Trainline,London,GBR,1445,REDACTED,556*********1418,4112,PASSENGER RAILWAYS,-58.4,Pound Sterling (826),1.000000000,-58.4,Credit,85130088060808315568537,02/03/2018,GLOUCESTER CC
Gloucester City Council,23UE,Countryside Unit,EP003,Vehicle Repairs and Maintenance,2103,05/02/2018,02/02/2018,PAYPAL *N4SMOTORS,35314369001,GBR,TW91EH,REDACTED,556*********6734,5533,"AUTOMOTIVE PARTS, ACCESSORIES STORES",8.5,Pound Sterling (826),1.000000000,8.5,Debit,85130088033804325340938,02/03/2018,GLOUCESTER CC
Gloucester City Council,23UE,Countryside Unit,EP003,Grounds Maintenance,1100,12/02/2018,09/02/2018,PAYPAL *VOSSGMBHCOK,35314369001,DEU,25885,REDACTED,556*********6734,5099,"DURABLE GOODS,NOT ELSEWHERE CLASSIFIED",164.3,Pound Sterling (826),1.000000000,164.3,Debit,85130088040805588171036,02/03/2018,GLOUCESTER CC
Gloucester City Council,23UE,Countryside Unit,EP003,Grounds Maintenance,1100,14/02/2018,13/02/2018,TAYNA LTD,ABERGELE,GBR,LL22 7AR,REDACTED,556*********6734,5533,"AUTOMOTIVE PARTS, ACCESSORIES STORES",141.73,Pound Sterling (826),1.000000000,141.73,Debit,15276328045000190360427,02/03/2018,GLOUCESTER CC
Gloucester City Council,23UE,Guildhall Bar & Caf�,GH005,Equipment and Furniture,3001,09/02/2018,08/02/2018,POUNDWORLD RETAIL,GLOUCESTER,,GL1 1PA,REDACTED,556*********1155,5310,DISCOUNT STORES,6,Pound Sterling (826),1.000000000,6,Debit,85481478040018002976489,02/03/2018,GLOUCESTER CC
Gloucester City Council,23UE,Guildhall Bar & Caf�,GH005,Equipment and Furniture,3001,09/02/2018,08/02/2018,B&M RETAIL LTD,HS GLOUCESTER,,GL12DH,REDACTED,556*********1155,5310,DISCOUNT STORES,14.75,Pound Sterling (826),1.000000000,14.75,Debit,85481478040018114905939,02/03/2018,GLOUCESTER CC
Gloucester City Council,23UE,The Arbor,CC001,Equipment and Furniture,3001,14/02/2018,13/02/2018,ASDA SUPERSTORE,GLOUCESTER,GBR,GL1 1DS,REDACTED,556*********1155,5411,"GROCERY STORES, SUPERMARKETS",59,Pound Sterling (826),1.000000000,59,Debit,45377758045090229236683,02/03/2018,GLOUCESTER CC
Gloucester City Council,23UE,Blackfriars ,GH010,Equipment and Furniture,3001,21/02/2018,20/02/2018,WWW.DRINKSTUFF.COM,INTERNET,GBR,SG8 6DN,REDACTED,556*********1155,5999,MISCELLANEOUS AND RETAIL STORES,74.97,Pound Sterling (826),1.000000000,74.97,Debit,25425158052050083816753,02/03/2018,GLOUCESTER CC
Gloucester City Council,23UE,Guildhall Events,GH002,Catering Provisions,3103,23/02/2018,22/02/2018,TESCO STORE 2581,GLOUCESTER,GBR,GL1 2SR,REDACTED,556*********1155,5411,"GROCERY STORES, SUPERMARKETS",40.9,Pound Sterling (826),1.000000000,40.9,Debit,45377758054070267696939,02/03/2018,GLOUCESTER CC
Gloucester City Council,23UE,Guildhall Bar & Caf�,GH005,Catering Provisions,3103,27/02/2018,26/02/2018,WM MORRISON STORE,575 GLOUCESTE,,GL1 4BD,REDACTED,556*********1155,5411,"GROCERY STORES, SUPERMARKETS",30.18,Pound Sterling (826),1.000000000,30.18,Debit,85481478058022343819456,02/03/2018,GLOUCESTER CC
Gloucester City Council,23UE,Guildhall Events,GH002,Catering Provisions,3103,02/03/2018,01/03/2018,WM MORRISON STORE,575 GLOUCESTE,,GL1 4BD,REDACTED,556*********1155,5411,"GROCERY STORES, SUPERMARKETS",27,Pound Sterling (826),1.000000000,27,Debit,85481478061023043920623,02/03/2018,GLOUCESTER CC
Gloucester City Council,23UE,Tourist Information Centre,TI002,Equipment and Furniture,3001,19/02/2018,16/02/2018,ARGOS RETAIL GROUP,INTERNET,,MK92NW,REDACTED,556*********8997,5310,DISCOUNT STORES,39.98,Pound Sterling (826),1.000000000,39.98,Debit,85481478049020135216941,02/03/2018,GLOUCESTER CC
Gloucester City Council,23UE,Eastgate Market,MK003,Equipment and Furniture,3001,26/02/2018,23/02/2018,WWW.UKPOS.COM,INTERNET,GBR,SK6 2TD,REDACTED,556*********8997,5943,"STATIONERY, OFFICE AND SCHOOL SUPPLY STO",108,Pound Sterling (826),1.000000000,108,Debit,25425158055080094699408,02/03/2018,GLOUCESTER CC
Gloucester City Council,23UE,Shopmobility,SM001,Equipment and Furniture,3001,26/02/2018,23/02/2018,WWW.UKPOS.COM,INTERNET,GBR,SK6 2TD,REDACTED,556*********8997,5943,"STATIONERY, OFFICE AND SCHOOL SUPPLY STO",175.68,Pound Sterling (826),1.000000000,175.68,Debit,25425158055080094699408,02/03/2018,GLOUCESTER CC
Gloucester City Council,23UE,Shopmobility,SM001,Printing External,3203,02/03/2018,01/03/2018,WWW.INSTANTPRINT.C,01709 382202,,S63 5DR,REDACTED,556*********8997,7338,QUICK-COPY AND REPRODUCTION SERVICES,17.49,Pound Sterling (826),1.000000000,17.49,Debit,85481478061022941884998,02/03/2018,GLOUCESTER CC
Gloucester City Council,23UE,Eastgate Market,MK003,Printing External,3203,02/03/2018,01/03/2018,WWW.INSTANTPRINT.C,01709 382202,,S63 5DR,REDACTED,556*********8997,7338,QUICK-COPY AND REPRODUCTION SERVICES,28.5,Pound Sterling (826),1.000000000,28.5,Debit,85481478061022941884998,02/03/2018,GLOUCESTER CC
Gloucester City Council,23UE,Civic Admin & Hospitality,DS001,Hospitality & Refreshments,3104,14/02/2018,13/02/2018,SAINSBURYS 2221,GLOUCESTER,GBR,GL2 5SA,REDACTED,556*********4301,5411,"GROCERY STORES, SUPERMARKETS",54.1,Pound Sterling (826),1.000000000,54.1,Debit,25425158045090095067672,02/03/2018,GLOUCESTER CC
Gloucester City Council,23UE,Members Support,DS002,Public Transport - Staff,2402,07/02/2018,06/02/2018,Trainline,London,GBR,1445,REDACTED,556*********3029,4112,PASSENGER RAILWAYS,107.6,Pound Sterling (826),1.000000000,107.6,Debit,85130088037805480163250,02/03/2018,GLOUCESTER CC
Gloucester City Council,23UE,Homelessness,HS002,B&B Payments,1303,05/02/2018,02/02/2018,TRAVELODGE GB0000,THAME,,OX9 3AT,REDACTED,556*********6959,3615,TRAVELODGE,181,Pound Sterling (826),1.000000000,181,Debit,55504438033298106687583,02/03/2018,GLOUCESTER CC
Gloucester City Council,23UE,Homelessness,HS002,B&B Payments,1303,05/02/2018,02/02/2018,TRAVELODGE GB0000,THAME,,OX9 3AT,REDACTED,556*********6959,3615,TRAVELODGE,446,Pound Sterling (826),1.000000000,446,Debit,55504438033298106671504,02/03/2018,GLOUCESTER CC
Gloucester City Council,23UE,Homelessness,HS002,B&B Payments,1303,06/02/2018,05/02/2018,TRAVELODGE GB0000,THAME,,OX9 3AT,REDACTED,556*********6959,3615,TRAVELODGE,67,Pound Sterling (826),1.000000000,67,Debit,55504438036298124007670,02/03/2018,GLOUCESTER CC
Gloucester City Council,23UE,Homelessness,HS002,B&B Payments,1303,06/02/2018,05/02/2018,TRAVELODGE GB0000,THAME,,OX9 3AT,REDACTED,556*********6959,3615,TRAVELODGE,67,Pound Sterling (826),1.000000000,67,Debit,55504438036298124097499,02/03/2018,GLOUCESTER CC
Gloucester City Council,23UE,Homelessness,HS002,B&B Payments,1303,07/02/2018,06/02/2018,TRAVELODGE GB0000,THAME,,OX9 3AT,REDACTED,556*********6959,3615,TRAVELODGE,224,Pound Sterling (826),1.000000000,224,Debit,55504438037298130389350,02/03/2018,GLOUCESTER CC
Gloucester City Council,23UE,Homelessness,HS002,B&B Payments,1303,07/02/2018,06/02/2018,TRAVELODGE GB0000,THAME,,OX9 3AT,REDACTED,556*********6959,3615,TRAVELODGE,83,Pound Sterling (826),1.000000000,83,Debit,55504438037298130395852,02/03/2018,GLOUCESTER CC
Gloucester City Council,23UE,Homelessness,HS002,B&B Payments,1303,07/02/2018,06/02/2018,TRAVELODGE GB0000,THAME,,OX9 3AT,REDACTED,556*********6959,3615,TRAVELODGE,579,Pound Sterling (826),1.000000000,579,Debit,55504438037298130403722,02/03/2018,GLOUCESTER CC
Gloucester City Council,23UE,Homelessness,HS002,B&B Payments,1303,07/02/2018,06/02/2018,TRAVELODGE GB0000,THAME,,OX9 3AT,REDACTED,556*********6959,3615,TRAVELODGE,513,Pound Sterling (826),1.000000000,513,Debit,55504438037298130515608,02/03/2018,GLOUCESTER CC
Gloucester City Council,23UE,Homelessness,HS002,B&B Payments,1303,07/02/2018,06/02/2018,TRAVELODGE GB0000,THAME,,OX9 3AT,REDACTED,556*********6959,3615,TRAVELODGE,-213,Pound Sterling (826),1.000000000,-213,Credit,55504438037298130392065,02/03/2018,GLOUCESTER CC
Gloucester City Council,23UE,Homelessness,HS002,B&B Payments,1303,08/02/2018,07/02/2018,TRAVELODGE GB0000,THAME,,OX9 3AT,REDACTED,556*********6959,3615,TRAVELODGE,83,Pound Sterling (826),1.000000000,83,Debit,55504438038298136356436,02/03/2018,GLOUCESTER CC
Gloucester City Council,23UE,Homelessness,HS002,B&B Payments,1303,09/02/2018,08/02/2018,TRAVELODGE GB0000,THAME,,OX9 3AT,REDACTED,556*********6959,3615,TRAVELODGE,1108,Pound Sterling (826),1.000000000,1108,Debit,55504438039298142594706,02/03/2018,GLOUCESTER CC
Gloucester City Council,23UE,Homelessness,HS002,B&B Payments,1303,12/02/2018,10/02/2018,IBIS GLOUCESTER,GLOUCESTER,GBR,GL43DG,REDACTED,556*********6959,3533,HOTEL IBIS,49,Pound Sterling (826),1.000000000,49,Debit,55184228041900428095534,02/03/2018,GLOUCESTER CC
Gloucester City Council,23UE,Homelessness,HS002,B&B Payments,1303,12/02/2018,11/02/2018,IBIS GLOUCESTER,GLOUCESTER,GBR,GL43DG,REDACTED,556*********6959,3533,HOTEL IBIS,75,Pound Sterling (826),1.000000000,75,Debit,55184228042890436813243,02/03/2018,GLOUCESTER CC
Gloucester City Council,23UE,Homelessness,HS002,B&B Payments,1303,13/02/2018,12/02/2018,TRAVELODGE GB0000,THAME,,OX9 3AT,REDACTED,556*********6959,3615,TRAVELODGE,237,Pound Sterling (826),1.000000000,237,Debit,55504438043298165838034,02/03/2018,GLOUCESTER CC
Gloucester City Council,23UE,Homelessness,HS002,B&B Payments,1303,13/02/2018,12/02/2018,TRAVELODGE GB0000,THAME,,OX9 3AT,REDACTED,556*********6959,3615,TRAVELODGE,466,Pound Sterling (826),1.000000000,466,Debit,55504438043298165763216,02/03/2018,GLOUCESTER CC
Gloucester City Council,23UE,Homelessness,HS002,B&B Payments,1303,13/02/2018,12/02/2018,TRAVELODGE GB0000,THAME,,OX9 3AT,REDACTED,556*********6959,3615,TRAVELODGE,154,Pound Sterling (826),1.000000000,154,Debit,55504438043298165735784,02/03/2018,GLOUCESTER CC
Gloucester City Council,23UE,Homelessness,HS002,B&B Payments,1303,13/02/2018,12/02/2018,IBIS GLOUCESTER,GLOUCESTER,GBR,GL43DG,REDACTED,556*********6959,3533,HOTEL IBIS,-75,Pound Sterling (826),1.000000000,-75,Credit,55184228043900441884524,02/03/2018,GLOUCESTER CC
Gloucester City Council,23UE,Homelessness,HS002,B&B Payments,1303,15/02/2018,14/02/2018,TRAVELODGE GB0000,THAME,,OX9 3AT,REDACTED,556*********6959,3615,TRAVELODGE,462,Pound Sterling (826),1.000000000,462,Debit,55504438045298178248567,02/03/2018,GLOUCESTER CC
Gloucester City Council,23UE,Homelessness,HS002,B&B Payments,1303,16/02/2018,15/02/2018,TRAVELODGE GB0000,THAME,,OX9 3AT,REDACTED,556*********6959,3615,TRAVELODGE,296,Pound Sterling (826),1.000000000,296,Debit,55504438046298184557364,02/03/2018,GLOUCESTER CC
Gloucester City Council,23UE,Homelessness,HS002,B&B Payments,1303,16/02/2018,15/02/2018,TRAVELODGE GB0000,THAME,,OX9 3AT,REDACTED,556*********6959,3615,TRAVELODGE,950,Pound Sterling (826),1.000000000,950,Debit,55504438046298184595281,02/03/2018,GLOUCESTER CC
Gloucester City Council,23UE,Homelessness,HS002,B&B Payments,1303,16/02/2018,15/02/2018,IBIS GLOUCESTER,GLOUCESTER,GBR,GL43DG,REDACTED,556*********6959,3533,HOTEL IBIS,79,Pound Sterling (826),1.000000000,79,Debit,55184228046900475648495,02/03/2018,GLOUCESTER CC
Gloucester City Council,23UE,Homelessness,HS002,B&B Payments,1303,19/02/2018,16/02/2018,TRAVELODGE GB0000,THAME,,OX9 3AT,REDACTED,556*********6959,3615,TRAVELODGE,238,Pound Sterling (826),1.000000000,238,Debit,55504438047298191486986,02/03/2018,GLOUCESTER CC
Gloucester City Council,23UE,Homelessness,HS002,B&B Payments,1303,19/02/2018,16/02/2018,IBIS GLOUCESTER,GLOUCESTER,GBR,GL43DG,REDACTED,556*********6959,3533,HOTEL IBIS,159,Pound Sterling (826),1.000000000,159,Debit,55184228047900489156401,02/03/2018,GLOUCESTER CC
Gloucester City Council,23UE,Homelessness,HS002,B&B Payments,1303,20/02/2018,19/02/2018,TRAVELODGE GB0000,THAME,,OX9 3AT,REDACTED,556*********6959,3615,TRAVELODGE,550,Pound Sterling (826),1.000000000,550,Debit,55504438050298109388831,02/03/2018,GLOUCESTER CC
Gloucester City Council,23UE,Homelessness,HS002,B&B Payments,1303,20/02/2018,19/02/2018,TRAVELODGE GB0000,THAME,,OX9 3AT,REDACTED,556*********6959,3615,TRAVELODGE,500,Pound Sterling (826),1.000000000,500,Debit,55504438050298109406146,02/03/2018,GLOUCESTER CC
Gloucester City Council,23UE,Homelessness,HS002,B&B Payments,1303,21/02/2018,20/02/2018,TRAVELODGE GB0000,THAME,,OX9 3AT,REDACTED,556*********6959,3615,TRAVELODGE,483,Pound Sterling (826),1.000000000,483,Debit,55504438051298115777992,02/03/2018,GLOUCESTER CC
Gloucester City Council,23UE,Homelessness,HS002,B&B Payments,1303,22/02/2018,21/02/2018,TRAVELODGE GB0000,THAME,,OX9 3AT,REDACTED,556*********6959,3615,TRAVELODGE,163,Pound Sterling (826),1.000000000,163,Debit,55504438052298122076569,02/03/2018,GLOUCESTER CC
Gloucester City Council,23UE,Homelessness,HS002,B&B Payments,1303,26/02/2018,23/02/2018,TRAVELODGE GB0000,THAME,,OX9 3AT,REDACTED,556*********6959,3615,TRAVELODGE,382,Pound Sterling (826),1.000000000,382,Debit,55504438054298135095315,02/03/2018,GLOUCESTER CC
Gloucester City Council,23UE,Homelessness,HS002,B&B Payments,1303,26/02/2018,23/02/2018,TRAVELODGE GB0000,THAME,,OX9 3AT,REDACTED,556*********6959,3615,TRAVELODGE,183,Pound Sterling (826),1.000000000,183,Debit,55504438054298135124420,02/03/2018,GLOUCESTER CC
Gloucester City Council,23UE,Homelessness,HS002,B&B Payments,1303,27/02/2018,26/02/2018,TRAVELODGE GB0000,THAME,,OX9 3AT,REDACTED,556*********6959,3615,TRAVELODGE,242,Pound Sterling (826),1.000000000,242,Debit,55504438057298153399059,02/03/2018,GLOUCESTER CC
Gloucester City Council,23UE,Homelessness,HS002,B&B Payments,1303,27/02/2018,26/02/2018,TRAVELODGE GB0000,THAME,,OX9 3AT,REDACTED,556*********6959,3615,TRAVELODGE,304,Pound Sterling (826),1.000000000,304,Debit,55504438057298153307664,02/03/2018,GLOUCESTER CC
Gloucester City Council,23UE,Homelessness,HS002,B&B Payments,1303,28/02/2018,27/02/2018,TRAVELODGE GB0000,THAME,,OX9 3AT,REDACTED,556*********6959,3615,TRAVELODGE,500,Pound Sterling (826),1.000000000,500,Debit,55504438058298160656326,02/03/2018,GLOUCESTER CC
Gloucester City Council,23UE,Homelessness,HS002,B&B Payments,1303,28/02/2018,27/02/2018,TRAVELODGE GB0000,THAME,,OX9 3AT,REDACTED,556*********6959,3615,TRAVELODGE,208,Pound Sterling (826),1.000000000,208,Debit,55504438058298160649081,02/03/2018,GLOUCESTER CC
Gloucester City Council,23UE,Homelessness,HS002,B&B Payments,1303,28/02/2018,27/02/2018,TRAVELODGE GB0000,THAME,,OX9 3AT,REDACTED,556*********6959,3615,TRAVELODGE,291,Pound Sterling (826),1.000000000,291,Debit,55504438058298160648166,02/03/2018,GLOUCESTER CC
Gloucester City Council,23UE,Homelessness,HS002,B&B Payments,1303,28/02/2018,27/02/2018,TRAVELODGE GB0000,THAME,,OX9 3AT,REDACTED,556*********6959,3615,TRAVELODGE,291,Pound Sterling (826),1.000000000,291,Debit,55504438058298160647127,02/03/2018,GLOUCESTER CC
Gloucester City Council,23UE,Homelessness,HS002,B&B Payments,1303,28/02/2018,27/02/2018,TRAVELODGE GB0000,THAME,,OX9 3AT,REDACTED,556*********6959,3615,TRAVELODGE,237,Pound Sterling (826),1.000000000,237,Debit,55504438058298160639462,02/03/2018,GLOUCESTER CC
Gloucester City Council,23UE,Homelessness,HS002,B&B Payments,1303,28/02/2018,27/02/2018,TRAVELODGE GB0000,THAME,,OX9 3AT,REDACTED,556*********6959,3615,TRAVELODGE,-237,Pound Sterling (826),1.000000000,-237,Credit,55504438058298160648505,02/03/2018,GLOUCESTER CC
Gloucester City Council,23UE,Homelessness,HS002,B&B Payments,1303,01/03/2018,28/02/2018,TRAVELODGE GB0000,THAME,,OX9 3AT,REDACTED,556*********6959,3615,TRAVELODGE,387,Pound Sterling (826),1.000000000,387,Debit,55504438059298165434074,02/03/2018,GLOUCESTER CC
Gloucester City Council,23UE,Homelessness,HS002,B&B Payments,1303,01/03/2018,28/02/2018,TRAVELODGE GB0000,THAME,,OX9 3AT,REDACTED,556*********6959,3615,TRAVELODGE,424,Pound Sterling (826),1.000000000,424,Debit,55504438059298165430155,02/03/2018,GLOUCESTER CC
Gloucester City Council,23UE,Homelessness,HS002,B&B Payments,1303,01/03/2018,28/02/2018,TRAVELODGE GB0000,THAME,,OX9 3AT,REDACTED,556*********6959,3615,TRAVELODGE,108,Pound Sterling (826),1.000000000,108,Debit,55504438059298165429462,02/03/2018,GLOUCESTER CC
Gloucester City Council,23UE,Homelessness,HS002,B&B Payments,1303,01/03/2018,28/02/2018,TRAVELODGE GB0000,THAME,,OX9 3AT,REDACTED,556*********6959,3615,TRAVELODGE,-387,Pound Sterling (826),1.000000000,-387,Credit,55504438059298165539682,02/03/2018,GLOUCESTER CC
Gloucester City Council,23UE,Homelessness Prevention,HS003,Mileage and Travel Allowances,2401,02/03/2018,01/03/2018,VERIFONE TAXI/PRIVATE,03336661000,GBR,UB8 2AD,REDACTED,556*********6959,4121,TAXICABS/LIMOUSINES,5,Pound Sterling (826),1.000000000,5,Debit,25425158061020065993697,02/03/2018,GLOUCESTER CC
Gloucester City Council,23UE,Homelessness,HS002,B&B Payments,1303,02/03/2018,01/03/2018,TRAVELODGE GB0000,THAME,,OX9 3AT,REDACTED,556*********6959,3615,TRAVELODGE,238,Pound Sterling (826),1.000000000,238,Debit,55504438060298171796315,02/03/2018,GLOUCESTER CC
Gloucester City Council,23UE,Council Streetcare Team,NE002,Public Transport - Staff,2402,06/02/2018,05/02/2018,Trainline,London,GBR,1445,REDACTED,556*********3822,4112,PASSENGER RAILWAYS,60.4,Pound Sterling (826),1.000000000,60.4,Debit,85130088036805441088027,02/03/2018,GLOUCESTER CC
Gloucester City Council,23UE,Managing Director & Directors,MT001,Catering Provisions,3103,07/02/2018,06/02/2018,Amazon UK Marketplace,800-279-6620,LUX,L2338,REDACTED,556*********3822,5942,BOOK STORES,12.85,Pound Sterling (826),1.000000000,12.85,Debit,55204728037200578739291,02/03/2018,GLOUCESTER CC
Gloucester City Council,23UE,Head of Communities,PP001,Mileage and Travel Allowances,2401,08/02/2018,07/02/2018,Trainline,London,GBR,1445,REDACTED,556*********3822,4112,PASSENGER RAILWAYS,180.2,Pound Sterling (826),1.000000000,180.2,Debit,85130088038805519008426,02/03/2018,GLOUCESTER CC
Gloucester City Council,23UE,Head of Cultural and Trading,MT003,Public Transport - Staff,2402,12/02/2018,09/02/2018,Trainline,London,GBR,1445,REDACTED,556*********3822,4112,PASSENGER RAILWAYS,105.5,Pound Sterling (826),1.000000000,105.5,Debit,85130088040805585846606,02/03/2018,GLOUCESTER CC
Gloucester City Council,23UE,Economic Development,ED001,Public Transport - Staff,2402,21/02/2018,20/02/2018,Trainline,London,GBR,1445,REDACTED,556*********3822,4112,PASSENGER RAILWAYS,5.65,Pound Sterling (826),1.000000000,5.65,Debit,85130088051807979205023,02/03/2018,GLOUCESTER CC
Gloucester City Council,23UE,Council Streetcare Team,NE002,Public Transport - Staff,2402,21/02/2018,20/02/2018,Trainline,London,GBR,1445,REDACTED,556*********3822,4112,PASSENGER RAILWAYS,14.15,Pound Sterling (826),1.000000000,14.15,Debit,85130088051807979190142,02/03/2018,GLOUCESTER CC
Gloucester City Council,23UE,Economic Development,ED001,Public Transport - Staff,2402,01/03/2018,28/02/2018,Trainline,London,GBR,1445,REDACTED,556*********3822,4112,PASSENGER RAILWAYS,85.5,Pound Sterling (826),1.000000000,85.5,Debit,85130088059808276096752,02/03/2018,GLOUCESTER CC
Gloucester City Council,23UE,Gloucester Guildhall,GH001,Public Transport - Staff,2402,07/02/2018,06/02/2018,Trainline,London,GBR,1445,REDACTED,556*********8256,4112,PASSENGER RAILWAYS,127.5,Pound Sterling (826),1.000000000,127.5,Debit,85130088037805477908915,02/03/2018,GLOUCESTER CC
Gloucester City Council,23UE,Gloucester Guildhall,GH001,General Supplies/Materials,3025,07/02/2018,07/02/2018,Amazon UK Marketplace,800-279-6620,LUX,L2338,REDACTED,556*********8256,5942,BOOK STORES,10.8,Pound Sterling (826),1.000000000,10.8,Debit,55204728038200699051187,02/03/2018,GLOUCESTER CC
Gloucester City Council,23UE,Blackfriars ,GH010,General Supplies/Materials,3025,12/02/2018,09/02/2018,BLOOMING ARTIFICIAL,08009777589,GBR,EC3V 0DR,REDACTED,556*********8256,5992,FLORISTS,450,Pound Sterling (826),1.000000000,450,Debit,75282478040130806937823,02/03/2018,GLOUCESTER CC
Gloucester City Council,23UE,Blackfriars ,GH010,General Supplies/Materials,3025,14/02/2018,13/02/2018,BLOOMING ARTIFICIAL,08009777589,GBR,EC3V 0DR,REDACTED,556*********8256,5992,FLORISTS,429.61,Pound Sterling (826),1.000000000,429.61,Debit,75282478044130846541482,02/03/2018,GLOUCESTER CC
Gloucester City Council,23UE,Gloucester Guildhall,GH001,Professional Advice/Consultants fees,3952,20/02/2018,19/02/2018,WILKO RETAIL LIMIT,GLOUCESTER 14,,GL11SL,REDACTED,556*********8256,5722,HOUSEHOLD APPLIANCE STORES,1.7,Pound Sterling (826),1.000000000,1.7,Debit,85481478051020591548931,02/03/2018,GLOUCESTER CC
Gloucester City Council,23UE,Blackfriars ,GH010,Professional Advice/Consultants fees,3952,20/02/2018,19/02/2018,HOMESENSE,GLOUCESTER,GBR,GL1 2UE,REDACTED,556*********8256,5331,VARIETY STORES,15,Pound Sterling (826),1.000000000,15,Debit,25377758051040157580316,02/03/2018,GLOUCESTER CC
Gloucester City Council,23UE,Blackfriars ,GH010,Professional Advice/Consultants fees,3952,20/02/2018,19/02/2018,DUNELM (SOFT FURNISHIN,GLOUCESTER,GBR,GL1 2TF,REDACTED,556*********8256,5714,"WINDOW COVERING, UPHOLSTERY AND DRAPERY STORES",28,Pound Sterling (826),1.000000000,28,Debit,55377758051040296527787,02/03/2018,GLOUCESTER CC
Gloucester City Council,23UE,Guildhall Cinema,GH003,Advertising & Publicity,3404,22/02/2018,21/02/2018,WWW.INSTANTPRINT.C,01709 382202,,S63 5DR,REDACTED,556*********8256,7338,QUICK-COPY AND REPRODUCTION SERVICES,22.99,Pound Sterling (826),1.000000000,22.99,Debit,85481478053021001829323,02/03/2018,GLOUCESTER CC
Gloucester City Council,23UE,Guildhall Events,GH002,Professional Advice/Consultants fees,3952,23/02/2018,15/02/2018,MIPERMIT,INTERNET,GBR,SN15 5FD,REDACTED,556*********8256,7523,AUTOMOBILE PARKING LOTS AND GARAGES,10,Pound Sterling (826),1.000000000,10,Debit,25425158054070090745314,02/03/2018,GLOUCESTER CC
Gloucester City Council,23UE,Guildhall Events,GH002,Professional Advice/Consultants fees,3952,23/02/2018,16/02/2018,MIPERMIT,INTERNET,GBR,SN15 5FD,REDACTED,556*********8256,7523,AUTOMOBILE PARKING LOTS AND GARAGES,10,Pound Sterling (826),1.000000000,10,Debit,25425158054070090745322,02/03/2018,GLOUCESTER CC
Gloucester City Council,23UE,Gloucester Guildhall,GH001,Professional Advice/Consultants fees,3952,27/02/2018,26/02/2018,Amazon UK Marketplace,800-279-6620,LUX,L2338,REDACTED,556*********8256,5942,BOOK STORES,2.48,Pound Sterling (826),1.000000000,2.48,Debit,55204728057200107692909,02/03/2018,GLOUCESTER CC
Gloucester City Council,23UE,Guildhall Cinema,GH003,Advertising & Publicity,3404,27/02/2018,26/02/2018,WWW.INSTANTPRINT.C,01709 382202,,S63 5DR,REDACTED,556*********8256,7338,QUICK-COPY AND REPRODUCTION SERVICES,27.99,Pound Sterling (826),1.000000000,27.99,Debit,85481478058022229475761,02/03/2018,GLOUCESTER CC
Gloucester City Council,23UE,Gloucester Guildhall,GH001,Professional Advice/Consultants fees,3952,28/02/2018,27/02/2018,Amazon UK Marketplace,800-279-6620,LUX,L2338,REDACTED,556*********8256,5942,BOOK STORES,4.98,Pound Sterling (826),1.000000000,4.98,Debit,55204728058200291467380,02/03/2018,GLOUCESTER CC
Gloucester City Council,23UE,Gloucester Guildhall,GH001,Professional Advice/Consultants fees,3952,28/02/2018,27/02/2018,Amazon UK Marketplace,800-279-6620,LUX,L2338,REDACTED,556*********8256,5942,BOOK STORES,2.96,Pound Sterling (826),1.000000000,2.96,Debit,55204728058200291486307,02/03/2018,GLOUCESTER CC
Gloucester City Council,23UE,Guildhall Events,GH002,Advertising & Publicity,3404,01/03/2018,28/02/2018,FACEBK E9PG6FNLR2,fb.me/ads,IRL,2,REDACTED,556*********8256,7311,ADVERTISING SERVICES,31.89,Pound Sterling (826),1.000000000,31.89,Debit,15265678059000218863521,02/03/2018,GLOUCESTER CC
Gloucester City Council,23UE,Guildhall Events,GH002,Advertising & Publicity,3404,01/03/2018,28/02/2018,FACEBK HBQZLFE5M2,fb.me/ads,IRL,2,REDACTED,556*********8256,7311,ADVERTISING SERVICES,189.7,Pound Sterling (826),1.000000000,189.7,Debit,15265678059000157833733,02/03/2018,GLOUCESTER CC
Gloucester City Council,23UE,Guildhall Cinema,GH003,Advertising & Publicity,3404,01/03/2018,28/02/2018,WWW.INSTANTPRINT.C,01709 382202,,S63 5DR,REDACTED,556*********8256,7338,QUICK-COPY AND REPRODUCTION SERVICES,22.99,Pound Sterling (826),1.000000000,22.99,Debit,85481478060022693792648,02/03/2018,GLOUCESTER CC
Gloucester City Council,23UE,Homelessness,HS002,B&B Payments,1303,05/02/2018,02/02/2018,TRAVELODGE GB0000,THAME,,OX9 3AT,REDACTED,556*********3063,3615,TRAVELODGE,4,Pound Sterling (826),1.000000000,4,Debit,55504438033298106774951,02/03/2018,GLOUCESTER CC
Gloucester City Council,23UE,Financial Services,FS004,Public Transport - Staff,2402,08/02/2018,07/02/2018,GWR WEBSALES,SWINDON,,SN1 1HL,REDACTED,556*********3063,4112,PASSENGER RAILWAYS,83.8,Pound Sterling (826),1.000000000,83.8,Debit,55504438038160306696241,02/03/2018,GLOUCESTER CC
Gloucester City Council,23UE,Business Transformation,BI006,ICT New Hardware,3523,13/02/2018,12/02/2018,Amazon UK Marketplace,800-279-6620,LUX,L2338,REDACTED,556*********3063,5942,BOOK STORES,24.99,Pound Sterling (826),1.000000000,24.99,Debit,55204728043200677937483,02/03/2018,GLOUCESTER CC
Gloucester City Council,23UE,Civica Admin Charges,BI002,Professional Advice/Consultants fees,3952,16/02/2018,15/02/2018,WWW.GOV.UK,C@HMCTS.GSI.G,,LS1 2BA,REDACTED,556*********3063,8999,PROFESSIONAL SERVICES NOT ELSEWHERE CLASSIFIED,10,Pound Sterling (826),1.000000000,10,Debit,85481478047019654016023,02/03/2018,GLOUCESTER CC
Gloucester City Council,23UE,Business Transformation,BI006,General Supplies/Materials,3025,21/02/2018,20/02/2018,ELECTRO SUPPLIES.C,HARLOW,,CM20 2FD,REDACTED,556*********3063,5732,ELECTRONIC SALES,41.94,Pound Sterling (826),1.000000000,41.94,Debit,55504438051174115624536,02/03/2018,GLOUCESTER CC
Gloucester City Council,23UE,Financial Services,FS004,External Training Course Fees,0550,23/02/2018,22/02/2018,NCS*CIMA VUE EXAM,800-511-3478,GBR,WC2R 0RL,REDACTED,556*********3063,8299,SCHOOLS AND EDUCATIONAL SERVICES NOT ELSEWHERE CLASSIFIED,95,Pound Sterling (826),1.000000000,95,Debit,55204728053200339408607,02/03/2018,GLOUCESTER CC
Gloucester City Council,23UE,Business Transformation,BI006,"ICT Software, Licences & Support",3521,27/02/2018,26/02/2018,WWW.JA.NET,012358222311,,OX11 0SG,REDACTED,556*********3063,8699,MEMBERSHIP ORGANIZATIONS NOT ELSEWHERE CLASSIFIED,360,Pound Sterling (826),1.000000000,360,Debit,55504438057295317668296,02/03/2018,GLOUCESTER CC
Gloucester City Council,23UE,Civica Admin Charges,BI002,Professional Advice/Consultants fees,3952,01/03/2018,28/02/2018,HMCOURTS-SERVICE.G,01452420100,,GL12ZG,REDACTED,556*********3063,9222,FINES,651,Pound Sterling (826),1.000000000,651,Debit,85481478060022703941862,02/03/2018,GLOUCESTER CC
Gloucester City Council,23UE,Business Transformation,BI006,ICT New Hardware,3523,02/03/2018,01/03/2018,Amazon EU,AMAZON.CO.UK,LUX,L2338,REDACTED,556*********3063,5969,ALL OTHER DIRECT MARKETERS,173.51,Pound Sterling (826),1.000000000,173.51,Debit,55204728060200800800143,02/03/2018,GLOUCESTER CC
